Cogmind - Beta 11.1 @@@ ROGUE MODE // 2022.07.25 @ 16:06:12 Player: Rainynight Result: Self-destructed Performance ------------- Evolutions (4) 2000 Regions Visited (7) 1400 Robots Destroyed (36) 180 Value Destroyed (734) 734 Prototype IDs (23) 460 Alien Tech Used (0) 0 Bonus (372) 372 TOTAL SCORE: 5146 Bonus ------- Follower Combat Kills 72 Aligned with FarCom 300 Cogmind --------- Core Integrity 832/850 Matter 279/300 Energy 150/150 System Corruption 0% Temperature Cool (9) Movement Hovering (116) Ox1 Location -6/Factory Parts ------- > --- POWER (1) -------- Micro Nuclear Core > --- PROPULSION (4) --- Improved Hover Unit Airjet > --- UTILITY (8) ------ Medium Storage Unit Structural Scanner Trap Scanner Machine Analyzer Improved Sensor Array Improved Signal Interpreter Improved Terrain Scanner Terrain Scan Processor > --- WEAPON (2) ------- Heavy Mace > --- INVENTORY (10) --- Improved Deuterium Engine Reinforced Deuterium Engine Light Fission Core Improved Cooling System Superbattery (1500) High-capacity Matter Pod (146) Advanced Weight Redist. System Advanced Melee Analysis Suite Transmission Jammer Light Armor Plating Peak State ------------ > --- POWER ------------ Micro Nuclear Core > --- PROPULSION ------- Improved Hover Unit Airjet Gravmag System > --- UTILITY ---------- Medium Storage Unit Advanced Weight Redist. System Structural Scanner Improved Sensor Array Improved Signal Interpreter Improved Terrain Scanner Terrain Scan Processor > --- WEAPON ----------- Greatsword > --- INVENTORY -------- Improved Deuterium Engine Reinforced Deuterium Engine Light Fission Core Improved Cooling System Superbattery High-capacity Matter Pod Trap Scanner Machine Analyzer Transmission Jammer Light Armor Plating [Rating: 40] Favorites ----------- Power Improved Ion Engine Engine Improved Ion Engine Power Core Micro Nuclear Core Propulsion Light Treads Treads Light Treads Leg Aluminum Leg Wheel Compact Wheel Hover Unit Hover Unit Utility Structural Scanner Device Structural Scanner Storage Large Storage Unit Processor Terrain Scan Processor Weapon Light Assault Rifle Ballistic Gun Light Assault Rifle Launcher Rocket Launcher Impact Weapon Powered Hammer Slashing Weapon Greatsword Special Melee Weapon Improved Datajack Build | -11 -10 -10 -10 -9 -8 -7 -6 ------- Run | Scr Mat Min Exi Min Mat Fac Fac Slots Evolved 8 | . . . . . 4 2 2 Power . | . . . . . . . . Propulsion 2 | . . . . . . 1 1 Utility 6 | . . . . . 4 1 1 Weapon . | . . . . . . . . Parts Attached 60 | 1 7 8 1 1 20 21 1 Power 6 | . 1 1 . . 2 2 . Engine 5 | . 1 1 . . 2 1 . Core 1 | . . . . . . 1 . Reactor . | . . . . . . . . Propulsion 13 | . 2 3 . 1 1 6 . Treads 3 | . 1 1 . . 1 . . Leg . | . . . . . . . . Wheel 4 | . 1 2 . 1 . . . Hover 6 | . . . . . . 6 . Flight . | . . . . . . . . Utility 20 | . 3 . . . 8 8 1 Device 12 | . 1 . . . 5 6 . Storage 3 | . 1 . . . . 2 . Processor 5 | . 1 . . . 3 . 1 Hackware . | . . . . . . . . Protection . | . . . . . . . . Artifact . | . . . . . . . . Weapon 21 | 1 1 4 1 . 9 5 . Energy Gun . | . . . . . . . . Energy Cannon . | . . . . . . . . Ballistic Gun 12 | 1 1 4 1 . 5 . . Ballistic Cannon . | . . . . . . . . Launcher 2 | . . . . . 2 . . Special Weapon . | . . . . . . . . Impact Weapon 4 | . . . . . 2 2 . Slashing Weapon 1 | . . . . . . 1 . Piercing Weapon . | . . . . . . . . Special Melee Weapon 2 | . . . . . . 2 . Unidentified Prototypes . | . . . . . . . . Corrupted Parts 2 | . . . . . . 2 . System Corruption 11 | . . . . . . 11 . Parts Lost 1 | . . . . . . . 1 Power . | . . . . . . . . Propulsion 1 | . . . . . . . 1 Utility . | . . . . . . . . Weapon . | . . . . . . . . Highest Loss Streak 1 | . . . . . . . 1 To Critical Strikes . | . . . . . . . . Average Slot Usage (%) 96 | . 99 100 100 100 91 93 86 Engine 10 | . 14 14 14 14 9 5 . Treads 9 | . 12 14 14 14 9 . . Wheel 9 | . 12 14 14 14 9 . . Hover 4 | . . . . . . 20 20 Device 18 | . 2 14 14 14 24 29 26 Storage 11 | . 14 14 14 14 9 7 6 Processor 7 | . 10 . . . 12 15 20 Ballistic Gun 18 | . 28 28 28 28 12 . . Impact Weapon 2 | . . . . . 4 6 6 Naked Turns . | . . . . . . . . Heaviest Build 36 | 10 27 33 32 32 36 35 24 Greatest Support 33 | 20 20 16 16 16 29 33 24 Greatest Overweight (x) 3 | . 1 3 1 3 3 1 . Average Overweight (x) . | . . 1 1 2 1 . . Largest Inventory Capacity 15 | 8 15 15 15 15 15 15 10 Average Capacity 13 | 8 14 15 15 15 15 10 10 Most Carried 15 | 6 15 15 15 15 15 15 10 Average Carried 13 | 6 13 14 14 15 14 10 9 Final Capacity 15 | 8 15 15 15 15 15 10 10 Final Carried 15 | 6 15 15 15 15 15 10 10 Class Distribution -------------------- 40% | Scavenger-Mutant 22% | Mutant 17% | Scavenger-Scout 10% | Scavenger-Assassin 9% | Scavenger-Skirmisher Dominant Class ---------------- Mutant | -10/Materials Scavenger-Mutant | -10/Mines Scavenger-Mutant | -10/Exiles Scavenger-Mutant | -9/Mines Scavenger-Skirmisher | -8/Materials Scavenger-Scout | -7/Factory Scavenger-Scout | -6/Factory Resources | -11 -10 -10 -10 -9 -8 -7 -6 ----------- Run | Scr Mat Min Exi Min Mat Fac Fac Matter Collected 1272 | 200 112 236 20 4 267 433 . Remotely . | . . . . . . . . Salvage Created 1128 | . 282 358 . 18 212 258 . Parts 73 | . 17 20 . 5 12 19 . Haulers Intercepted 3 | . . . . . . 3 . Recyclers Shooed 4 | . 4 . . . . . . Parts Field Recycled . | . . . . . . . . Retrieved Matter . | . . . . . . . . Parts Self-Destructed . | . . . . . . . . Prevented . | . . . . . . . . Kills | -11 -10 -10 -10 -9 -8 -7 -6 ------- Run | Scr Mat Min Exi Min Mat Fac Fac Combat Hostiles Destroyed 19 | . 5 7 . . 6 1 . Melee 1 | . . . . . . 1 . Guns 17 | . 5 7 . . 5 . . AOE 1 | . . . . . 1 . . Classes Destroyed 11 | . 5 2 . . 1 3 . Worker 2 | . . . . . . 2 . Builder 4 | . 1 1 . . . 2 . Tunneler 3 | . . 2 . 1 . . . Hauler 3 | . . . . . . 3 . Recycler 3 | . 2 1 . . . . . Operator 1 | . 1 . . . . . . Watcher 1 | . . . . . 1 . . Swarmer 9 | . 3 3 . . 3 . . Grunt 5 | . 2 2 . . 1 . . Sentry 4 | . . 2 . . 2 . . Programmer 1 | . . . . . . 1 . Best Kill Streak 6 | . 6 5 . 1 4 4 . Combat Bots Only 4 | . 3 4 . . 4 1 . Max Kills in Single Turn 1 | . 1 1 . 1 1 1 . Gunslinging . | . . . . . . . . Exploded 1 | . . . . . 1 . . Melee 1 | . . . . . . 1 . Uniques/NPCs Destroyed . | . . . . . . . . Combat | -11 -10 -10 -10 -9 -8 -7 -6 -------- Run | Scr Mat Min Exi Min Mat Fac Fac Damage Taken 1112 | . 89 440 . . 436 57 90 Core 267 | . 32 92 . . 115 10 18 Absorbed by Shields . | . . . . . . . . Regen/Repaired (Parts) 27 | . . . . . . 27 . Core Remaining (%) 81 | 100 . . . 50 79 98 . Volleys Fired 80 | . 26 27 . 1 26 . . Largest 2 | . 2 2 . 2 2 . . Hottest 56 | . 40 43 . 43 56 . . Shots Fired 160 | . 52 54 . 2 52 . . Gun 156 | . 52 54 . 2 48 . . Cannon . | . . . . . . . . Launcher 4 | . . . . . 4 . . Special . | . . . . . . . . Kinetic 156 | . 52 54 . 2 48 . . Thermal . | . . . . . . . . Explosive 4 | . . . . . 4 . . Electromagnetic . | . . . . . . . . Robot Hit Streak 12 | . 10 12 . 1 7 . . Robot Miss Streak 5 | . 2 2 . 1 5 . . Penetration Max . | . . . . . . . . Secondary Targets 1 | . . . . . 1 . . Max Gunslinging Chain 1 | . . . . . 1 . . Shots Hit Robots 118 | . 34 38 . 1 32 12 1 Core Hits 56 | . 16 18 . 1 15 6 . Critical Kills 1 | . . 1 . . . . . Critical Parts Destroyed 1 | . . . . . . 1 . Critical Strikes 2 | . . 1 . . . 1 . Destroy 1 | . . 1 . . . . . Smash 1 | . . . . . . 1 . Melee Attacks 30 | . . . . . 5 22 3 Impact 23 | . . . . . 5 15 3 Slashing 6 | . . . . . . 6 . Piercing . | . . . . . . . . Sneak Attacks 9 | . . . . . . 9 . Combat Hostiles 1 | . . . . . . 1 . Follow-up Attacks 1 | . . . . . 1 . . Damage Inflicted 2417 | . 286 471 . 17 686 934 23 Guns 1141 | . 286 471 . 17 367 . . Cannons . | . . . . . . . . Explosions 282 | . . . . . 282 . . Melee 994 | . . . . . 37 934 23 Ramming . | . . . . . . . . Kinetic 1141 | . 286 471 . 17 367 . . Thermal . | . . . . . . . . Explosive 282 | . . . . . 282 . . Electromagnetic . | . . . . . . . . Impact 681 | . . . . . 37 621 23 Slashing 313 | . . . . . . 313 . Piercing . | . . . . . . . . Highest Corruption 11 | . . . . . 2 11 . Average Corruption 2 | . . . . . 2 3 . Corruption Purged 1 | . . . . . . 1 . Corruption Blocked . | . . . . . . . . Effects 14 | . . . . . 8 6 . Message Errors 3 | . . . . . 2 1 . Matter Fused 5 | . . . . . 1 4 . Heat Flow Errors 3 | . . . . . 2 1 . Energy Discharges 1 | . . . . . 1 . . Data Loss (minor) 1 | . . . . . 1 . . Misfires 1 | . . . . . 1 . . Overload Shots . | . . . . . . . . Overflow Damage 212 | . . . . . 2 210 . Projectiles . | . . . . . . . . Explosions . | . . . . . . . . Melee 212 | . . . . . 2 210 . Knockbacks . | . . . . . . . . Impact . | . . . . . . . . Kinetic . | . . . . . . . . Secondary . | . . . . . . . . Self-Inflicted Damage 21 | . . . . . 21 . . Shots 1 | . . . . . 1 . . Rammed . | . . . . . . . . Targets Rammed . | . . . . . . . . Kicked . | . . . . . . . . Crushed . | . . . . . . . . Highest Temperature 293 | . 6 34 . 4 293 159 . Average Temperature 56 | . 6 11 . 3 107 82 . Received Heat Transfer 369 | . 18 198 . . 126 . 27 Siege Activations . | . . . . . . . . Robots Corrupted . | . . . . . . . . Combat Hostiles . | . . . . . . . . Parts Fried 3 | . . . . . 3 . . Impact Corruptions 5 | . . . . . 1 4 . Robots Melted . | . . . . . . . . Combat Hostiles . | . . . . . . . . Parts Melted . | . . . . . . . . Heat Transferred . | . . . . . . . . Parts Sabotaged . | . . . . . . . . Parts Stolen . | . . . . . . . . Parts Stripped . | . . . . . . . . Power Chain Reactions . | . . . . . . . . Missiles Intercepted . | . . . . . . . . Alert | -11 -10 -10 -10 -9 -8 -7 -6 ------- Run | Scr Mat Min Exi Min Mat Fac Fac Peak Influence 277 | . 160 277 . 5 217 241 71 Initial 62 | . . 62 . . 1 53 58 Average 111 | . 105 133 . 4 82 182 59 Maximum Alert Level 1 | . . 1 . . 1 1 . Low Security (%) 76 | 100 100 75 . 100 96 25 100 Level 1 23 | . . 24 . . 3 74 . Level 2 . | . . . . . . . . Level 3 . | . . . . . . . . Level 4 . | . . . . . . . . Level 5 . | . . . . . . . . High Security . | . . . . . . . . Max Security . | . . . . . . . . Squads Dispatched 7 | . 1 . . . 2 4 . Investigation 2 | . . . . . 1 1 . Extermination 1 | . . . . . . 1 . Reinforcement 3 | . 1 . . . 1 1 . Assault 1 | . . . . . . 1 . Garrison . | . . . . . . . . Intercept . | . . . . . . . . Searches Triggered . | . . . . . . . . Construction Impeded . | . . . . . . . . Haulers Reinforced 1 | . . . . . . 1 . Active Scanning Responses . | . . . . . . . . Cargo Convoy Interrupts . | . . . . . . . . Stealth | -11 -10 -10 -10 -9 -8 -7 -6 --------- Run | Scr Mat Min Exi Min Mat Fac Fac Distress Signals . | . . . . . . . . Communications Jammed . | . . . . . . . . Distress Signals . | . . . . . . . . Times Spotted 39 | . 7 8 . . 20 1 3 Peak Tracking Total 5 | . 3 5 . . 4 1 3 Tactical Retreats 3 | . . 1 . . 2 . . Traps | -11 -10 -10 -10 -9 -8 -7 -6 ------- Run | Scr Mat Min Exi Min Mat Fac Fac Traps Triggered 4 | . . . . . 2 1 1 Indirectly . | . . . . . . . . Trap Hack Attempts . | . . . . . . . . Triggered . | . . . . . . . . Disarmed . | . . . . . . . . Reprogrammed . | . . . . . . . . Reused . | . . . . . . . . Traps Extracted . | . . . . . . . . Installed . | . . . . . . . . Triggered . | . . . . . . . . Exploded 1 | . . . . . . 1 . Machines | -11 -10 -10 -10 -9 -8 -7 -6 ---------- Run | Scr Mat Min Exi Min Mat Fac Fac Machines Disabled 1 | . . . . . . 1 . Max in Single Turn 1 | . . . . . . 1 . Garrison Access 3 | . . . . . 1 2 . Machines Sabotaged . | . . . . . . . . Garrisons Compromised . | . . . . . . . . Overloaded Fab Kills . | . . . . . . . . Hacking | -11 -10 -10 -10 -9 -8 -7 -6 --------- Run | Scr Mat Min Exi Min Mat Fac Fac Machines Accessed 18 | . 2 . 4 . 6 5 1 Terminals 9 | . 1 . . . 5 2 1 Fabricators . | . . . . . . . . Repair Stations 1 | . . . . . . 1 . Recycling Units 1 | . 1 . . . . . . Scanalyzers . | . . . . . . . . Garrison Access 3 | . . . . . 1 2 . Total Hacks 69 | . 5 . 27 . 20 16 1 Successful 49 | . 5 . 27 . 11 5 1 Failed 20 | . . . . . 9 11 . Catastrophic 4 | . . . . . 1 3 . Database Lockouts . | . . . . . . . . Manual 32 | . 4 . 1 . 19 7 1 Terminals 30 | . 3 . . . 19 7 1 Fabricators . | . . . . . . . . Repair Stations 4 | . . . . . . 4 . Recycling Units 2 | . 2 . . . . . . Scanalyzers . | . . . . . . . . Garrison Access 6 | . . . . . 1 5 . Terminal Hacks 30 | . 1 . 27 . 2 . . Record 26 | . . . 26 . . . . Robot Analysis 2 | . 1 . . . 1 . . Zone Layout 1 | . . . . . 1 . . EX-Prototype ID Bank 1 | . . . 1 . . . . Fabricator Hacks . | . . . . . . . . Repair Station Hacks 2 | . . . . . . 2 . Scan Component 1 | . . . . . . 1 . Repair 1 | . . . . . . 1 . Recycling Unit Hacks 1 | . 1 . . . . . . Report Inventory 1 | . 1 . . . . . . Scanalyzer . | . . . . . . . . Garrison Access Hacks 2 | . . . . . 1 1 . Seal Access 2 | . . . . . 1 1 . Unauthorized Hacks 14 | . 3 . . . 8 2 1 Terminals 13 | . 2 . . . 8 2 1 Track 8 | . 1 . . . 5 1 1 Botnet 5 | . 1 . . . 3 1 . Fabricators . | . . . . . . . . Repair Stations . | . . . . . . . . Recycling Units 1 | . 1 . . . . . . Reject 1 | . 1 . . . . . . Scanalyzers . | . . . . . . . . Garrison Access . | . . . . . . . . Data Cores Recovered . | . . . . . . . . Used . | . . . . . . . . Hacking Detections 10 | . . . . . 5 4 1 Full Trace Events 4 | . . . . . 3 1 . Feedback Events 1 | . . . . . . 1 . Corruption 1 | . . . . . . 1 . Feedback Blocked . | . . . . . . . . Robot Schematics Acquired . | . . . . . . . . Robots Built . | . . . . . . . . Authchips . | . . . . . . . . Time . | . . . . . . . . Total Robot Build Rating . | . . . . . . . . Part Schematics Acquired . | . . . . . . . . Parts Built . | . . . . . . . . Authchips . | . . . . . . . . Time . | . . . . . . . . Total Part Build Rating . | . . . . . . . . Parts Repaired 1 | . . . . . . 1 . Time 19 | . . . . . . 19 . Parts Recycled . | . . . . . . . . Recycled Matter . | . . . . . . . . Retrieved Matter . | . . . . . . . . Retrieved Components . | . . . . . . . . Parts Scanalyzed . | . . . . . . . . Part Schematics Acquired . | . . . . . . . . Parts Damaged . | . . . . . . . . Bothacking | -11 -10 -10 -10 -9 -8 -7 -6 ------------ Run | Scr Mat Min Exi Min Mat Fac Fac Used RIF Installer . | . . . . . . . . Robots Hacked 1 | . . . . . . 1 . Non-combat 1 | . . . . . . 1 . Combat . | . . . . . . . . Robot Hacks Applied 1 | . . . . . . 1 . no_distress 1 | . . . . . . 1 . Relay Couplers Released 2 | . . . . . . 2 . Machine Destruction 2 | . . . . . . 2 . Fabnet Peak Effective % . | . . . . . . . . Robots Rewired . | . . . . . . . . Allies Hacked . | . . . . . . . . Hacks Repelled . | . . . . . . . . Allies | -11 -10 -10 -10 -9 -8 -7 -6 -------- Run | Scr Mat Min Exi Min Mat Fac Fac Total Allies 3 | . . . . 3 . . . Largest Group 3 | . . . . 3 3 . . Highest-Rated Group 40 | . . . . 40 40 . . Highest-Rated Ally 16 | . . . . 16 16 . . Total Orders . | . . . . . . . . Ally Attacks 26 | . . . . . 26 . . Total Damage 266 | . . . . . 266 . . Kills 3 | . . . . . 3 . . Allies Corrupted . | . . . . . . . . Allies Melted . | . . . . . . . . Intel | -11 -10 -10 -10 -9 -8 -7 -6 ------- Run | Scr Mat Min Exi Min Mat Fac Fac Robot Analysis Total 2 | . 1 . . . 1 . . Derelict Logs Recovered 2 | . . 1 . 1 . . . Drone Launches . | . . . . . . . . Drone Recoveries . | . . . . . . . . Exploration | -11 -10 -10 -10 -9 -8 -7 -6 ------------- Run | Scr Mat Min Exi Min Mat Fac Fac Turns Passed 2785 | 2 338 650 310 234 660 522 69 Spaces Moved 2249 | 1 201 474 262 185 398 616 112 Core . | . . . . . . . . Treads 15 | . . . . . 15 . . Legs 26 | 1 25 . . . . . . Wheels 1513 | . 176 474 262 185 383 33 . Hover 695 | . . . . . . 583 112 Flight . | . . . . . . . . Fastest Speed 52 | 120 100 115 115 115 95 52 52 Average Speed 96 | 120 115 115 115 122 114 57 52 Slowest Speed 250 | 120 120 130 115 125 250 112 52 Overloaded Moves . | . . . . . . . . Propulsion Burnouts . | . . . . . . . . Robots Hopped . | . . . . . . . . Cave-ins Triggered . | . . . . . . . . Exploration Rate (%) 35 | 2 31 80 61 50 40 16 5 Regions Visited 7 Branch Regions 3 Pre-discovered Areas . | . . . . . . . . Known Exits Taken 2 | . . . . . 1 1 . Unknown Exits Taken 5 | 1 1 1 1 1 . . . Scrap Searched . | . . . . . . . . Spaces Dug 25 | . . . . . 15 9 1 Terrain Destroyed 45 | . . . . . 35 9 1 Melee 13 | . . . . . 3 9 1 Projectile . | . . . . . . . . AOE 32 | . . . . . 32 . . Terrain Rammed . | . . . . . . . . Walls Destroyed . | . . . . . . . . Machines Disabled . | . . . . . . . . Actions | -11 -10 -10 -10 -9 -8 -7 -6 --------- Run | Scr Mat Min Exi Min Mat Fac Fac Total 2681 | 1 271 529 274 191 548 750 117 Wait 144 | . 4 7 . 4 83 46 . Move 2242 | . 200 473 261 184 397 615 112 Hop . | . . . . . . . . Pick Up 42 | . 20 3 6 . 4 8 1 Fast Attach 19 | . 2 . . . 8 9 . Attach 4 | . . . . . . 3 1 Detach 4 | . 1 . . . 1 2 . Swap 37 | 1 5 8 1 1 12 9 . Drop 67 | . 13 11 6 1 13 23 . Fire 80 | . 26 27 . 1 26 . . Melee 29 | . . . . . 4 22 3 Ram . | . . . . . . . . Kick . | . . . . . . . . Crush . | . . . . . . . . Escape Stasis 13 | . . . . . . 13 . Rewire . | . . . . . . . . Trap . | . . . . . . . . Miscellaneous . | . . . . . . . . Route ------- -11/Scrapyard -10/Materials -10/Mines -10/Exiles -9/Mines -8/Materials (discovered 2 exits: *Fac x2) -7/Factory -6/Factory History --------- Turn | Location | Event 3 | -11/Scrapyard | Discovered new exit (range 0) 3 | -11/Scrapyard | Entered Materials 291 | -10/Materials | Discovered new exit (range 16) 341 | -10/Materials | Build established: Mutant 341 | -10/Materials | Entered Mines 712 | -10/Mines | Learned 2 Materials zone layouts 726 | -10/Mines | Received a Rocket Launcher from a helpful Derelict 927 | -10/Mines | Build established: Scavenger-Mutant 987 | -10/Mines | Deemed a non-threat by the Exiles lab entrance 987 | -10/Mines | Discovered new exit (range 5) 991 | -10/Mines | Entered Exiles 1026 | -10/Exiles | Met 8R-AWN 1046 | -10/Exiles | Met EX-HEX 1076 | -10/Exiles | Met EX-BIN 1092 | -10/Exiles | Aligned with FarCom system 1093 | -10/Exiles | Given EX-Vault access code 1119 | -10/Exiles | Opened EX-Vault 1128 | -10/Exiles | Found Superbattery 1170 | -10/Exiles | Warned to stay clear of 0b10 Research branches 1205 | -10/Exiles | Met EX-DEC 1287 | -10/Exiles | Discovered new exit (range 10) 1301 | -10/Exiles | Left Exiles lab with Superbattery 1301 | -10/Exiles | Entered Mines 1328 | -9/Mines | Learned location of 2 exits from Materials 1483 | -9/Mines | Assisted by bots powering up and referring to "LRC-V3" 1525 | -9/Mines | Discovered new exit (range 6) 1535 | -9/Mines | Entered Materials 1535 | -8/Materials | Accompanied by 3 allies 1535 | -8/Materials | Evolved 4 slots: Utility x4 1536 | -8/Materials | Identified exit to Factory 2195 | -8/Materials | Entered Factory 2195 | -7/Factory | Evolved 2 slots: Propulsion x1, Utility x1 2601 | -7/Factory | Build established: Scavenger-Scout 2639 | -7/Factory | System corruption reached 10% 2682 | -7/Factory | Discovered new exit (range 13) 2698 | -7/Factory | Repaired Airjet 2717 | -7/Factory | Identified exit to Factory 2717 | -7/Factory | Entered another Factory area 2717 | -6/Factory | Evolved 2 slots: Propulsion x1, Utility x1 2786 | -6/Factory | Self-destructed Last Messages --------------- 02755_ Terminal x1 02763_ >> Machine Analyzer network decryption results: 02763_ Scanalyzer x1 02770_ >> Machine Analyzer network decryption results: 02770_ DSF Access x1 02770_ Terminal x1 02776_ Connecting with Terminal... >>Trojan(Track) Trojan loaded successfully. Testing... Tracking enabled and active. 02777_ >> Machine Analyzer network decryption results: 02777_ Recycling Unit x1 02779_ >> Machine Analyzer network decryption results: 02779_ Terminal x1 02780_ Triggered Ambush Trap. 02780_ S-27 Virus emerges from a hatch in the floor. 02780_ G-50 Soldier emerges from a hatch in the floor. 02780_ ALERT: All DSF locations entering lockdown mode. 02786_ Gravmag System destroyed. Map ----- +----------------------------------------------------+ | | | | | | | | | | | ???????????????????????#??????????????????????#### | | ????????????????????????????????????????? ? ??? | | ??????????????????????????????#????#?#??? ?????? | | ?????????????????????????????#????????????""" """ | | ?????????????????????????????????#??????? """ """ | | ???????????????????????"? ############??? """ """ | | ????????????????????????? ############??? | | ????????????????????? ??? # """ ##?## """ """ | | ?????????????????? ?????? # """ ##?## """ """ | | ????????????????#????????## """ ##?## """ """ | | ??????????????????????? ? + ##?## | | ????????????????????g????## """##?#########+# | | ??????????????????g?l???### T"##?####### | | ?????????????????????????## """###??#??## | | ""?"""?????### ??????????## ########## | | ""?"""?????### ??????????###+##+### ########## | | ""?"""????? ????????#### u | | ????????????## ? ####### ###########+#####+ | | ????????????## ####### # ### | | T"?????????###R g ; ### | | ???????????## s @ # ???? ### | | ???????????##T """ # ? ???## | | ???????????### """g # ??? ### "" "" | | ??????????#?## """ u # ?????## ""S"" | | ????????????## ! ##?#????## """" | | ????????????## """ ##????#?## | | ????????????#####+##### """ ##??????########## | | ???????????? # """ # ?????? ######## | | ????????????????????? # ?? # ????? ????????#? | | ???????????"""?"""??? # """ # ???? ????#?????? | | ???????????"""?"""??? # ?""" # ???? ??????????? | | ???????????"""?"""??? # ?""" k + ??????? ?????? ? | | ???????????????????????????? # ?????????????? ? | | ???????????"""?"""???????""" # ???????????????? | | ???????????"""?"""???????"""??????????????????"""" | | ???????????"""?"""????? ?"""?? ???????????????"""" | | ????????????????????????? ????????????????????"""" | | ?????????????????????????"""??????????????????"""" | | ?????????????????????????"""?????????????????????? | | ?????????????????????????"""?????????????????????? | | ?????????????????????????????????????????????????? | | ?????????????????????????"""?????????????????????? | | ?????????????????????????"""?????????????????????? | | ?????????????????????????"""?????????????????????? | | ?????????????????????????????????????????????????? | +----------------------------------------------------+ Best States ------------- Heat Dissipation 55 Energy Generation 16 Energy Capacity 1765 Matter Stores 300 Matter Capacity 300 Sight Range 18 Robot Scan Range 15 Terrain Scan Range 16 Terrain Scan Density 85 Additional Mass Support 9 Evasion (%) 55 Recoil Reduction 1 Item Schematics ----------------- None Robot Schematics ------------------ None Fabricated ------------ Nothing Alien Tech Used ----------------- None Achievements -------------- None Challenges ------------ None Game ------ Seed PulseTrackerBoosters Manual? 0 Play Time 00:40:30 Cumulative 141.3 hours Start 2022.07.25 @ 14:48:15 End 2022.07.25 @ 16:06:12 Sessions 3 Manual Loads 0 Difficulty Rogue Special Mode None Game No. 185 Rogue 181 Adventurer 0 Explorer 4 Win Type - Total 5 Types 5/0/0/0/0/0/0/0/0 Lore% 63 Gallery% 66 Achievement% 55 Wizard Run 0 Options --------- ASCII 1 Keyboard 1 Movement Numpad Keybinds 0 Fullscreen 1 Font 18/X11 Map View 76x50 Tactical HUD 1 Map Filters NONE Filters NONE Steam X RUN: bcd18eb9-a9fa-434a-b231-1ef47322d6b1